bitfinex/quotes_ETHUSD_20250130
["timestamp","ask_amount","ask_price","bid_price","bid_amount"]
[1738209681078,3.11382,3211.5,3210.6,0.7875]
[1738209681386,3.11342,3211.9,3210.6,3.90217]
[1738209681684,3.11392,3211.4,3210.6,3.90217]
[1738209681884,3.11374,3211.6,3210.8,3.11445]
[1738209682237,3.11354,3211.8,3210.6,0.7875]
[1738209682386,3.11342,3211.9,3211.1,3.11416]
[1738209682720,3.11268,3212.7,3211.8,3.11344]
[1738209682928,3.11277,3212.6,3211.8,3.11344]
[1738209683109,0.781,3212.9,3211.4,3.88599]
[1738209683442,3.11298,3212.4,3211.5,3.11373]
[1738209683913,3.11298,3212.4,3211.6,3.11371]
[1738209684113,0.311298,3212.3,3211.6,3.11371]
[1738209684837,3.424338,3212.3,3211.5,3.11376]
[1738209685004,3.11304,3212.3,3211.5,3.11376]
[1738209685207,3.1126,3212.8,3212.0,3.11328]
[1738209685421,3.11246,3212.9,3211.4,0.7721]
[1738209685736,3.11261,3212.8,3212.0,3.11327]
[1738209685960,3.423921,3212.7,3212.0,3.11331]
[1738209686275,0.311261,3212.7,3211.4,3.88591]
[1738209686411,3.1132,3212.2,3211.5,3.1138]
[1738209686817,3.11315,3212.2,3211.4,0.7721]
[1738209687351,3.11305,3212.3,3211.6,3.1137]
[1738209687556,3.11331,3212.1,3211.3,3.11393]
[1738209687766,0.8287,3212.5,3211.2,0.22506539]
[1738209687767,3.11354,3211.8,3211.2,0.22506539]
[1738209688118,3.11389,3211.5,3211.2,0.22506539]
[1738209688469,0.7855,3211.9,3210.9,3.11438]
[1738209688753,3.11347,3211.9,3211.1,3.1141]
[1738209688954,3.11325,3212.1,3211.3,3.114]
[1738209689255,3.11333,3212.0,3211.3,3.114]
[1738209689411,3.11306,3212.3,3211.3,3.114]
[1738209689617,3.1133,3212.1,3211.3,3.114]
[1738209689958,3.1136,3211.8,3211.1,3.11412]
[1738209690117,3.11322,3212.1,3210.8,3.91618]
[1738209690452,3.11335,3212.0,3210.9,3.11439]
[1738209690757,3.11323,3212.1,3211.3,3.11393]
[1738209690958,0.6616236,3212.0,3211.3,3.11393]
[1738209691125,0.7855,3212.4,3210.8,0.8017]
[1738209691328,3.8985,3212.4,3211.4,3.1139]
[1738209691527,3.11315,3212.2,3211.4,3.11383]
[1738209691963,0.7855,3212.4,3210.9,3.11432]
[1738209692258,3.11321,3212.2,3211.4,3.11387]
[1738209692439,3.11332,3212.0,3211.2,3.11403]
[1738209692645,0.311321,3212.1,3210.8,0.8017]
[1738209692834,0.311321,3212.1,3211.5,3.11379]
[1738209693779,3.424561,3212.1,3211.5,3.11379]
[1738209693934,0.311321,3212.1,3211.3,3.11397]
[1738209694267,3.4558001,3212.0,3211.1,3.11416]
[1738209694483,3.11362,3211.7,3211.1,3.11416]
[1738209694627,3.11362,3211.7,3210.9,0.3134]
[1738209694831,0.8203,3211.7,3210.9,0.3134]
[1738209695076,3.11348,3211.9,3211.1,3.11411]
[1738209695440,3.736151,3211.9,3211.1,3.11411]
[1738209695625,3.736151,3211.9,3211.2,3.11402]
[1738209696135,3.11323,3212.1,3211.3,3.11398]
[1738209696545,3.11323,3212.1,3211.5,3.11378]
[1738209696745,3.11323,3212.1,3211.3,3.11398]
[1738209696959,3.11307,3212.3,3211.5,3.11373]
[1738209697202,0.8203,3212.5,3211.9,3.11335]
[1738209697378,3.11266,3212.7,3211.9,3.11335]
[1738209697677,0.61375957,3213.0,3212.5,3.11283]
[1738209697837,0.8203,3213.3,3212.3,3.11299]
[1738209698029,0.8203,3213.3,3212.6,3.11272]
[1738209698235,3.11225,3213.2,3212.4,3.11287]
[1738209698773,1.213519,3213.3,3212.3,3.11299]
[1738209698774,3.11253,3212.9,3212.3,3.11299]
[1738209698975,3.11256,3212.8,3212.1,3.11321]
[1738209699177,0.8203,3212.6,3211.7,3.11359]
[1738209699344,3.11294,3212.4,3211.7,3.11359]
[1738209699683,3.11314,3212.2,3211.5,3.1138]
[1738209699864,0.311314,3212.1,3211.5,3.1138]
[1738209700381,0.311314,3212.1,3211.0,3.93085]
[1738209700540,0.8203,3212.6,3211.0,0.8166]
[1738209700739,3.11315,3212.2,3211.2,3.11403]
[1738209701012,3.11296,3212.4,3211.6,3.11368]
[1738209701283,3.11296,3212.4,3211.0,0.8166]
[1738209701284,3.11296,3212.4,3211.7,3.11355]
[1738209701484,0.8203,3212.6,3211.1,3.11414]
[1738209701668,0.8203,3212.6,3212.0,3.1133]
[1738209701870,0.8203,3212.6,3212.1,3.11322]
[1738209702177,0.8203,3212.6,3212.0,3.1133]
[1738209702383,0.8203,3213.9,3211.9,0.8166]
[1738209702589,0.61890488,3214.6,3213.5,6.22356]
[1738209702742,0.7654,3215.1,3213.7,3.11167]
[1738209702941,6e-06,3213.8,3213.7,3.89707]
[1738209704669,6e-06,3213.8,3213.7,4.12269104]
[1738209704851,6e-06,3213.8,3213.7,0.22562104]
[1738209705257,6e-06,3213.8,3213.7,3.33729104]
[1738209705790,6e-06,3213.8,3213.7,3.11167]
[1738209707079,6e-06,3213.8,3213.5,3.11186]
[1738209707582,6e-06,3213.8,3213.3,3.11205]
[1738209707892,6e-06,3213.8,3213.4,3.11194]
[1738209708490,6e-06,3213.8,3213.0,3.11235]
[1738209708655,6e-06,3213.8,3212.9,0.7742]
[1738209708857,6e-06,3213.8,3213.7,3.11167]
[1738209709062,6e-06,3213.8,3213.7,4.197037]
[1738209710169,6e-06,3213.8,3213.7,4.97197108]
[1738209710346,6e-06,3213.8,3213.7,4.42197108]
[1738209710951,11.49,3216.0,3215.9,3.10954]
[1738209711562,11.49,3216.0,3215.9,3.86844]
[1738209712044,11.49,3216.0,3215.9,4.56625]
[1738209712251,6.72842868,3216.0,3215.9,4.56625]
[1738209712686,5.17369868,3216.0,3215.9,4.56625]
[1738209712993,3.61896868,3216.0,3215.9,7.56625]
[1738209713172,8.68e-06,3216.0,3215.9,8.12375]
[1738209713376,0.167639,3217.0,3216.9,3.86748]
[1738209714088,0.167639,3217.0,3216.4,3.90299]
[1738209714274,0.167639,3217.0,3216.1,3.10926]
[1738209714448,0.167639,3217.0,3216.0,0.794]
[1738209714650,0.167639,3217.0,3216.0,3.794]
[1738209714884,0.167639,3217.0,3216.8,3.10866]
[1738209715290,0.167639,3217.0,3216.6,3.10883]
[1738209715463,0.167639,3217.0,3216.3,3.10906]
[1738209715807,0.167639,3217.0,3216.3,3.10911]
[1738209716210,3.10875,3216.8,3216.0,0.794]
[1738209716505,3.10875,3216.8,3216.0,3.90336]
[1738209716677,3.10875,3216.8,3216.1,3.10935]
[1738209717013,3.276159,3217.0,3216.1,3.10935]
[1738209717330,0.167639,3217.0,3215.7,3.10974]
[1738209717616,0.167639,3217.0,3216.0,3.10945]
[1738209717918,0.167639,3217.0,3216.8,3.10865]
[1738209718210,0.167639,3217.0,3216.7,3.10877]
[1738209718412,0.167639,3217.0,3216.7,6.21746]
[1738209718612,0.167639,3217.0,3216.7,3.10869]
[1738209718819,0.167639,3217.0,3216.4,0.7557]
[1738209718968,0.167639,3217.0,3216.9,3.10858]
[1738209719166,0.167639,3217.0,3216.9,3.419438]
[1738209720373,0.167639,3217.0,3216.9,3.10858]
[1738209721115,0.167639,3217.0,3216.5,3.10896]
[1738209721317,0.167639,3217.0,3216.9,3.10858]
[1738209722517,0.167639,3217.0,3216.9,3.92118]
[1738209724112,0.167639,3217.0,3216.9,3.10858]
[1738209724910,0.005,3218.4,3216.9,3.10858]
[1738209725073,0.005,3218.4,3216.8,3.10867]
[1738209725407,0.7643,3217.5,3216.5,0.7974]
[1738209725614,0.7643,3217.5,3216.8,3.10866]
[1738209725820,3.87237,3217.5,3216.7,3.10877]
[1738209726125,3.10821,3217.3,3216.7,3.10877]
[1738209726329,3.495461,3217.3,3216.4,3.10904]
[1738209726510,3.10845,3217.1,3216.1,0.7646]
[1738209726834,3.10845,3217.1,3216.3,3.10915]
[1738209727009,3.10845,3217.1,3215.3,3.31005]
[1738209727010,3.10893,3216.6,3215.2,3.11022]
[1738209727312,0.7706,3217.0,3215.3,3.732154]
[1738209727517,3.10877,3216.7,3215.5,3.10992]
[1738209727722,3.10928,3216.2,3215.0,0.8071]
[1738209727876,0.7552,3216.8,3215.0,0.8071]
[1738209727877,3.10937,3216.1,3215.0,0.8071]
[1738209728080,3.10916,3216.3,3215.6,3.10977]
[1738209728518,3.10916,3216.3,3215.4,3.10998]
[1738209728519,3.10937,3216.1,3215.4,3.10998]
[1738209728817,0.7761,3216.0,3215.2,3.11021]
[1738209729021,3.10971,3215.8,3215.1,3.1103]
[1738209729417,3.10955,3215.9,3215.2,3.11018]
[1738209729618,3.10955,3215.9,3215.3,3.11012]
[1738209729824,0.388565,3215.9,3214.7,3.11063]
[1738209730134,0.7761,3216.0,3214.5,0.7794]
[1738209730135,3.11023,3215.2,3214.5,3.11083]
[1738209730709,3.90398,3215.2,3214.3,3.11109]
[1738209730927,3.11042,3215.0,3214.3,3.11109]
[1738209731139,3.11071,3214.7,3214.0,0.29560664]
[1738209731304,3.11052,3214.9,3214.1,0.35726492]
[1738209731481,0.7937,3215.2,3214.1,0.35726492]
[1738209731687,0.7937,3215.2,3214.1,3.46854492]
[1738209731935,0.7937,3215.2,3214.1,3.46847492]
[1738209731936,3.11055,3214.9,3214.1,3.46847492]
[1738209732098,3.11034,3215.1,3214.2,0.34684749]
[1738209732437,3.11073,3214.7,3214.1,0.35726492]
[1738209732624,3.11073,3214.7,3214.1,3.46852492]
[1738209733228,3.11052,3214.9,3214.2,3.11116]
[1738209733428,3.11032,3215.1,3213.8,0.22417161]
[1738209733733,0.7937,3215.2,3214.5,3.11081]
[1738209733734,3.90399,3215.2,3214.5,3.11081]
[1738209733937,3.90399,3215.2,3214.6,3.11077]
[1738209734237,0.7937,3215.2,3214.8,3.11057]
[1738209734443,0.8196,3215.6,3215.1,3.11032]
[1738209734643,3.92771,3216.2,3215.3,3.11006]
[1738209734979,3.10937,3216.1,3215.4,3.11002]
[1738209735316,3.10937,3216.1,3215.5,3.10992]
[1738209735498,3.10937,3216.1,3215.3,3.11012]
[1738209735700,0.8184,3216.2,3214.5,4.39421593]
[1738209735701,3.92766,3216.2,3215.5,3.10986]
[1738209735925,0.8184,3216.2,3215.5,3.10986]
[1738209736122,3.10938,3216.1,3215.5,3.10986]
[1738209736954,3.92768,3216.2,3215.5,3.10986]
[1738209737248,3.10808,3217.5,3216.6,3.10886]
[1738209737545,3.10822,3217.3,3216.7,3.10874]
[1738209737846,3.10808,3217.5,3216.2,3.10923]
[1738209737847,3.10869,3216.8,3216.2,3.10923]
[1738209738038,3.1085,3217.0,3216.3,3.10908]
[1738209738404,0.8306,3216.7,3216.1,3.10934]
[1738209738756,3.10903,3216.5,3215.6,0.7832]
[1738209738959,3.10903,3216.5,3215.8,3.10963]
[1738209739654,3.93942,3216.7,3215.4,3.4684339]
[1738209739655,0.8306,3216.7,3215.4,3.4684339]
[1738209739961,3.10936,3216.1,3215.6,0.3584339]
[1738209740127,3.10958,3215.9,3215.6,0.3584339]
[1738209740331,0.8306,3215.8,3215.6,0.3584339]
[1738209740539,3.10974,3215.7,3215.6,0.3584339]
[1738209741315,0.8306,3215.8,3214.8,0.3584339]
[1738209741715,3.11044,3215.0,3214.8,0.3584339]
[1738209742414,0.8322,3214.9,3214.8,0.3584339]
[1738209742657,0.8322,3214.9,3214.7,0.71347987]
[1738209742862,3.94273,3214.9,3214.7,0.71347987]
[1738209743032,3.11071,3214.7,3213.9,0.3584339]
[1738209743224,3.11097,3214.5,3213.9,0.3584339]
[1738209743423,3.11087,3214.6,3213.9,0.3584339]
[1738209743762,3.11092,3214.5,3213.9,3.11146]
[1738209744823,3.1111,3214.3,3213.6,3.11176]
[1738209745019,3.1111,3214.3,3213.4,3.94354]
[1738209745020,3.1111,3214.3,3213.4,3.11194]
[1738209745251,3.11169,3213.7,3213.3,0.3584339]
[1738209745421,3.11181,3213.6,3213.0,3.11233]
[1738209745641,3.11181,3213.6,3212.8,3.11253]
[1738209745856,3.11198,3213.4,3212.6,0.29560664]
[1738209746161,3.11223,3213.2,3212.6,0.29560664]
[1738209746429,3.11245,3213.0,3212.6,0.29560664]
[1738209746602,0.8114,3212.9,3212.6,0.29560664]
[1738209746977,0.8114,3212.9,3212.2,3.11312]
[1738209747172,0.8114,3212.9,3211.8,3.1135]
[1738209747373,3.11274,3212.7,3211.8,3.42485]
[1738209747583,3.11292,3212.5,3211.7,3.11357]
[1738209747787,3.11275,3212.6,3211.2,0.393074]
[1738209748093,3.11321,3212.2,3211.4,3.11389]
[1738209748313,0.7568,3211.9,3211.2,3.11407]
[1738209748514,3.87022,3211.9,3211.2,3.11407]
[1738209749225,3.87022,3211.9,3210.6,4.20649664]
[1738209749226,0.7568,3211.9,3210.6,1.09190664]
[1738209749386,0.7568,3211.9,3211.3,3.36358]
[1738209749588,3.11369,3211.7,3211.3,0.2496]
[1738209749828,3.11351,3211.8,3211.3,0.2496]
[1738209750036,0.7568,3211.9,3211.3,0.2496]
[1738209750243,3.87022,3211.9,3211.3,0.2496]
[1738209750536,3.11369,3211.7,3211.3,0.2496]
[1738209750741,3.11385,3211.5,3211.3,0.2496]
[1738209751101,0.7568,3211.9,3211.3,0.2496]
[1738209751301,3.11351,3211.8,3211.3,0.2496]
[1738209751502,0.7568,3211.9,3211.3,0.2496]
[1738209751735,3.11352,3211.8,3211.3,0.2496]
[1738209751944,0.7568,3211.9,3211.3,3.36358]
[1738209752110,0.7715,3212.3,3211.3,0.2496]
[1738209752316,3.868,3211.4,3211.3,0.2496]
[1738209752539,0.7541,3211.4,3211.3,0.2496]
[1738209752740,4.254784,3211.4,3211.3,0.2496]
[1738209755565,8.2008846,3211.4,3211.3,0.2496]
[1738209756326,0.8146,3211.3,3209.5,3.11573]
[1738209756663,0.8146,3210.4,3209.2,3.11594]
[1738209756868,3.92948,3210.4,3209.5,3.11565]
[1738209757040,3.92948,3210.4,3208.9,0.7865]
[1738209757239,3.11518,3210.1,3209.3,3.1159]
[1738209757435,3.11528,3210.0,3209.1,3.11613]
[1738209757678,0.392948,3210.3,3208.5,3.11664]
[1738209757679,3.11564,3209.7,3208.7,3.11643]
[1738209758006,3.11564,3209.7,3208.9,3.11631]
[1738209758306,3.507998,3210.3,3209.2,3.11596]
[1738209758307,3.11516,3210.1,3209.2,3.11596]
[1738209758493,3.11543,3209.9,3209.2,3.11596]
[1738209759361,3.11543,3209.9,3209.0,3.11623]
[1738209759598,0.8314,3209.7,3209.0,3.11619]
[1738209759772,0.8314,3209.7,3209.3,3.11594]
[1738209760099,0.789,3210.2,3209.5,3.11571]
[1738209760303,3.11521,3210.1,3208.7,3.0]
[1738209760601,3.90409,3210.2,3209.4,3.1158]
[1738209760758,3.90409,3210.2,3209.6,3.11564]
[1738209760967,0.8104,3210.6,3209.4,0.8034]
[1738209761164,0.8104,3210.6,3210.1,3.11516]
[1738209761365,0.8104,3210.6,3210.2,3.11506]
[1738209761766,0.8104,3211.0,3210.5,3.1147]
[1738209761990,0.8104,3211.0,3210.6,3.11467]
[1738209762375,3.92421,3211.5,3210.8,3.11441]
[1738209762596,3.92421,3211.5,3210.9,3.11438]
[1738209762784,3.92421,3211.5,3210.3,0.8034]
[1738209762985,3.92421,3211.5,3210.8,3.11448]
[1738209763311,3.92421,3211.5,3211.3,0.2504]
[1738209763312,3.1139,3211.4,3211.3,0.2504]
[1738209763515,0.8104,3211.5,3211.3,0.2504]
[1738209764191,3.1139,3211.4,3211.3,0.2504]
[1738209764791,3.9243,3211.4,3211.3,0.2504]
[1738209764993,4.628108,3211.4,3211.3,0.2504]
[1738209765688,0.8104,3211.4,3211.3,0.2504]
[1738209766095,3.9243,3211.4,3211.3,0.2504]
[1738209769009,3.9243,3211.4,3211.3,0.23826677]
[1738209770288,3.11378,3211.6,3211.3,0.23826677]
[1738209770493,3.11352,3211.8,3211.3,0.23826677]
[1738209770687,3.11367,3211.7,3211.3,0.23826677]
[1738209771018,3.11335,3212.0,3211.4,3.11389]
[1738209771190,3.11294,3212.4,3211.8,3.11345]
[1738209771397,0.8092,3212.5,3211.5,0.33521568]
[1738209771599,0.8092,3212.5,3211.5,3.1138]
[1738209771600,3.11311,3212.3,3211.5,3.1138]
[1738209771830,3.11297,3212.4,3211.3,1.03336677]
[1738209772202,3.11304,3212.3,3211.6,3.11363]
[1738209772812,0.8092,3212.5,3211.8,3.11344]
[1738209773014,3.11273,3212.7,3212.0,3.1133]
[1738209773231,0.822,3212.9,3212.3,3.11298]
[1738209773531,3.93448,3212.9,3212.3,3.11298]
[1738209774145,3.11151,3213.9,3212.3,0.622618]
[1738209774286,9.5241106,3214.4,3212.2,0.7535]
[1738209774287,0.7877,3213.8,3212.7,3.11264]
[1738209774485,3.11215,3213.3,3212.6,3.11269]
[1738209774803,3.11189,3213.5,3212.8,3.11254]
[1738209774998,0.389926,3213.7,3212.6,3.11273]
[1738209775324,0.7877,3213.8,3212.2,0.7535]
[1738209775489,3.11239,3213.0,3212.3,3.11295]
[1738209776121,3.9461006,3213.9,3212.1,3.11319]
[1738209776328,3.11167,3213.7,3212.3,3.11298]
[1738209776623,3.11275,3212.6,3211.9,3.11335]
[1738209776809,3.11275,3212.6,3212.0,3.11329]
[1738209776990,3.11281,3212.6,3211.7,0.8329]
[1738209777195,3.11281,3212.6,3211.9,3.11335]
[1738209777591,3.11294,3212.4,3211.7,0.8329]
[1738209778088,3.11294,3212.4,3211.7,3.94649]
[1738209778448,3.11294,3212.4,3211.3,0.23826677]
[1738209778449,3.1135,3211.9,3211.3,1.04666677]
[1738209778623,3.93704,3212.1,3211.4,3.11383]
[1738209778830,0.8238,3212.1,3211.3,1.04666677]
[1738209779007,3.1134,3212.0,3211.3,4.16065677]
[1738209779538,3.11345,3211.9,3211.3,0.23826677]
[1738209779739,3.11372,3211.6,3211.3,0.23826677]
[1738209780106,3.11351,3211.8,3211.3,0.23826677]
[1738209780308,3.11335,3212.0,3211.3,0.23826677]
[1738209780517,3.11313,3212.2,3211.3,0.23826677]
[1738209780518,0.7647,3212.6,3211.3,0.23826677]
[1738209780712,3.11284,3212.5,3211.7,3.11361]
[1738209780911,3.11303,3212.3,3211.7,3.11361]
[1738209781112,3.500614,3212.5,3211.9,3.11333]
[1738209781298,3.500614,3212.5,3211.7,3.11359]
[1738209781299,3.11295,3212.4,3211.7,3.11359]
[1738209781528,3.11286,3212.5,3211.7,3.11359]
[1738209781696,3.11286,3212.5,3211.5,3.11379]
[1738209781697,3.11329,3212.1,3211.5,3.11379]
[1738209782901,3.1132,3212.2,3211.6,3.1137]
[1738209783440,3.11303,3212.3,3211.4,3.93057]
[1738209783663,3.11329,3212.1,3211.4,3.93057]
[1738209783792,0.7647,3212.6,3211.4,1.54499068]
[1738209784018,3.87746,3212.6,3212.0,3.11324]
[1738209784242,3.87746,3212.6,3211.7,3.11355]
[1738209784447,3.11293,3212.4,3211.8,3.11349]
[1738209784650,3.1129,3212.5,3211.9,3.11342]
[1738209784851,0.699036,3212.5,3211.4,0.8167]
[1738209785118,3.11323,3212.1,3211.4,3.93053]
[1738209785541,0.7647,3212.6,3211.3,0.23826677]
[1738209785542,3.11345,3211.9,3211.3,0.23826677]
[1738209785821,3.9461006,3212.9,3211.3,0.23826677]
[1738209785822,3.11388,3211.5,3211.3,0.23826677]
[1738209786040,3.92535,3211.7,3211.3,0.23826677]
[1738209786232,0.8117,3211.7,3211.3,0.23826677]
[1738209786550,3.11372,3211.6,3211.3,0.23826677]
[1738209786730,3.1139,3211.4,3211.3,0.23826677]
[1738209788840,3.8814,3211.4,3211.3,0.23826677]
[1738209789019,8.5420126,3211.4,3211.3,0.22316677]
[1738209789219,8.5420126,3211.4,3209.8,3.11545]
[1738209789220,3.11536,3209.9,3209.5,0.30036232]
[1738209789625,3.11548,3209.8,3209.6,0.00119165]
[1738209789831,3.11555,3209.7,3209.5,0.30036232]
[1738209790014,3.11555,3209.7,3209.0,0.7903]
[1738209790015,3.11555,3209.7,3209.0,3.90651]
[1738209790219,3.11555,3209.7,3209.1,0.00119184]
[1738209790771,3.11566,3209.6,3209.1,0.0252]
[1738209791080,3.11588,3209.4,3209.1,0.0252]
[1738209791243,3.11602,3209.3,3208.6,3.11659]
[1738209791654,0.7675,3209.5,3208.8,3.11634]
[1738209791959,3.88325,3209.5,3208.3,3.11691]
[1738209792144,3.11586,3209.4,3208.5,3.11665]
[1738209792347,3.116,3209.3,3208.5,3.11665]
[1738209792544,3.11604,3209.2,3208.5,3.11665]
[1738209792750,3.11625,3209.0,3208.3,3.11689]
[1738209792963,3.11625,3209.0,3208.2,3.9073]
[1738209793160,3.427875,3209.0,3208.2,3.9073]
[1738209793469,3.1165,3208.8,3208.1,0.72587442]
[1738209793868,3.1166,3208.7,3208.1,0.72587442]
[1738209794073,3.8841,3208.7,3208.1,0.72587442]
[1738209794575,3.11682,3208.4,3208.1,0.72587442]
[1738209794792,3.428502,3208.4,3208.1,0.72587442]
[1738209794953,0.311682,3208.4,3207.3,0.167639]
[1738209795284,3.11683,3208.4,3207.5,3.11761]
[1738209795595,0.5575,3208.6,3207.3,0.167639]
[1738209795740,0.7675,3207.8,3207.3,0.167639]
[1738209795940,3.11711,3208.1,3207.3,0.167639]
[1738209796165,3.11724,3208.0,3207.3,0.167639]
[1738209796365,0.623435,3208.0,3207.3,0.167639]
[1738209796540,3.11731,3207.9,3207.3,0.167639]
[1738209796741,3.11741,3207.8,3207.3,0.167639]
[1738209796978,3.11714,3208.1,3207.3,3.285429]
[1738209797686,3.88441,3208.3,3207.4,3.11777]
[1738209797880,0.7675,3208.3,3207.3,0.167639]
[1738209798048,3.11701,3208.2,3207.5,3.11768]
[1738209798381,0.7675,3208.3,3207.7,3.11742]
[1738209798567,0.7675,3208.7,3208.3,3.11688]
[1738209798747,0.311625,3209.0,3208.1,3.1171]
[1738209798748,3.11634,3208.9,3208.1,3.1171]
[1738209798948,0.3427965,3208.8,3208.2,3.11701]
[1738209799151,3.11634,3208.9,3208.2,3.11701]
[1738209799648,3.427865,3209.0,3208.3,3.11689]
[1738209799852,0.311625,3209.0,3208.3,3.11689]
[1738209800186,0.7675,3209.1,3208.5,3.11666]
[1738209800390,3.11564,3209.7,3207.9,0.7558]
[1738209800551,3.11564,3209.7,3209.0,3.11619]
[1738209800752,0.7544,3209.8,3208.9,3.11625]
[1738209800977,4.256837,3209.8,3208.9,3.11625]
[1738209801176,4.256837,3209.8,3209.0,3.11623]
[1738209801177,3.11567,3209.6,3209.0,3.11623]
[1738209801381,3.11569,3209.6,3208.7,3.11652]
[1738209801592,3.11569,3209.6,3208.9,3.11626]
[1738209801886,3.11576,3209.5,3208.7,3.11652]
[1738209802184,3.738891,3209.5,3208.9,3.11632]
[1738209802391,0.623131,3209.5,3209.0,3.11622]
[1738209802548,3.11555,3209.7,3209.0,3.11622]
[1738209802751,3.11568,3209.6,3209.0,3.11622]
[1738209802953,1.141367,3209.8,3209.1,3.11606]
[1738209803149,0.7544,3209.8,3209.2,3.11594]
[1738209803386,0.7544,3209.8,3209.3,3.11593]
[1738209803774,0.8309,3210.2,3209.7,3.11549]
[1738209803974,0.8309,3210.2,3209.3,0.7576]
[1738209803975,0.8309,3210.2,3209.8,3.11543]
[1738209804177,0.8309,3210.6,3209.3,0.7576]
[1738209804390,3.11413,3211.2,3209.5,0.7576]
[1738209804391,3.1142,3211.1,3209.5,0.7576]
[1738209804590,3.11449,3210.8,3209.5,0.7576]
[1738209804773,3.11449,3210.8,3209.9,3.11529]
[1738209804973,3.11449,3210.8,3210.1,3.11509]
[1738209805894,3.11458,3210.8,3210.0,3.11522]
[1738209806252,3.11467,3210.7,3210.0,3.11522]
[1738209806458,0.622925,3210.6,3210.1,3.11514]
[1738209806798,3.11458,3210.8,3210.1,3.11514]
[1738209807571,3.11446,3210.9,3210.1,3.1151]
[1738209807869,3.11452,3210.8,3210.1,3.1151]
[1738209808204,3.11494,3210.4,3209.7,3.11546]
[1738209808419,0.311494,3210.3,3209.6,3.11562]
[1738209808708,3.11468,3210.6,3209.9,3.11535]
[1738209808919,0.8119,3210.7,3209.9,3.11535]
[1738209809117,3.11523,3210.1,3209.2,3.11601]
[1738209809324,0.7581,3210.0,3208.4,0.7934]
[1738209809517,3.11585,3209.4,3208.4,0.7934]
[1738209809806,3.11562,3209.7,3208.4,3.91015]
[1738209810006,3.11561,3209.7,3208.9,3.11625]
[1738209810173,3.11561,3209.7,3208.5,6.23344]
[1738209810374,0.311561,3209.6,3208.9,3.11623]
[1738209810620,0.311561,3209.6,3209.0,3.11622]
[1738209810974,3.427231,3209.6,3209.0,3.11622]
[1738209811282,0.311561,3209.6,3209.0,3.11622]
[1738209811477,3.11556,3209.7,3209.0,3.11622]
[1738209811711,3.11556,3209.7,3209.1,3.11612]
[1738209812006,3.11538,3209.9,3208.9,3.11632]
[1738209812171,3.11557,3209.7,3208.9,3.11632]
[1738209812372,3.11557,3209.7,3209.0,3.11621]
[1738209812373,0.311557,3209.6,3209.0,3.11621]
[1738209813621,0.311557,3209.6,3209.1,3.11612]
[1738209814409,0.8152,3209.5,3208.4,0.3117]
[1738209814706,3.93097,3209.5,3208.5,3.11665]
[1738209814915,0.8152,3209.5,3208.9,3.11629]
[1738209815403,0.8152,3209.5,3209.1,3.11606]
[1738209815604,0.8152,3209.5,3209.2,3.11599]
[1738209815787,3.93099,3209.5,3208.8,3.11636]
[1738209815988,0.393099,3209.4,3209.0,3.1162]
[1738209816200,0.8152,3209.5,3209.0,3.1162]
[1738209816406,0.8152,3209.5,3208.8,3.11641]
[1738209816605,0.793,3209.9,3209.2,3.11596]
[1738209816810,0.793,3209.9,3208.6,3.42832]
[1738209816996,0.793,3209.9,3209.6,3.11564]
[1738209817198,3.11488,3210.4,3208.3,0.72582917]
[1738209817199,0.8163,3210.4,3209.2,3.11599]
[1738209817513,0.8163,3210.4,3209.8,3.11538]
[1738209817809,4.36560106,3210.8,3210.2,3.11504]
[1738209817999,4.36560106,3210.8,3209.8,3.11542]
[1738209818205,3.11513,3210.2,3209.5,3.1157]
[1738209818588,3.11513,3210.2,3209.5,3.11572]
[1738209818800,0.311513,3210.1,3209.5,3.11572]
[1738209819204,4.36565106,3210.8,3209.1,0.8283]
[1738209819205,3.11464,3210.7,3209.1,0.8283]
[1738209819510,0.7961,3210.3,3209.5,3.11567]
[1738209819710,3.11509,3210.2,3209.5,3.11567]
[1738209819890,3.11528,3210.0,3209.4,3.11582]
[1738209820079,3.738317,3210.0,3209.4,3.11582]
[1738209820489,3.11566,3209.6,3208.9,3.11627]
[1738209820715,3.11551,3209.8,3209.2,3.11602]
[1738209821117,3.738307,3210.0,3209.4,3.11578]
[1738209821293,0.623037,3210.0,3209.5,3.11573]
[1738209821508,0.7961,3210.3,3209.7,3.11555]
[1738209821710,0.7961,3210.3,3210.1,3.11513]
[1738209821908,0.7791,3210.7,3210.2,3.11507]
[1738209822632,0.7791,3210.7,3210.3,3.11494]
[1738209823064,0.7791,3210.7,3210.2,3.11501]
[1738209823199,1.168459,3210.7,3210.2,3.11501]
[1738209824015,1.168459,3210.7,3210.4,3.11484]
[1738209824215,0.7791,3210.7,3210.6,3.11468]
[1738209824420,3.923,3211.1,3210.4,3.1148]
[1738209824641,0.8088,3211.1,3210.5,3.11476]
[1738209825150,0.8088,3211.1,3209.4,0.7737]
[1738209825151,3.11448,3210.9,3210.3,3.11495]
[1738209825911,3.92306,3211.1,3210.4,3.11486]
[1738209826110,0.392306,3211.0,3210.4,3.11486]
[1738209826305,0.392306,3211.0,3210.7,3.11454]
[1738209826562,0.8088,3211.1,3210.5,3.11477]
[1738209826761,0.8088,3211.1,3210.6,3.11467]
[1738209827860,3.11449,3210.8,3210.3,3.11493]
[1738209828060,3.11451,3210.8,3210.2,3.11506]
[1738209828223,3.11439,3210.9,3209.7,3.11553]
[1738209828563,3.11429,3211.0,3210.4,3.11485]
[1738209828564,0.622868,3210.8,3210.4,3.11485]